Cogmind - Beta 10.2 @@@ ROGUE MODE // 2021.11.06 @ 17:36:49 Player: SURFACESEEKER Result: Destroyed by G-34 Mercenary with Small Laser Performance ------------- Evolutions (0) 0 Regions Visited (2) 400 Robots Destroyed (19) 95 Value Destroyed (330) 330 Prototype IDs (0) 0 Alien Tech Used (0) 0 Bonus (0) 0 TOTAL SCORE: 825 Bonus ------- None Cogmind --------- Core Integrity 0/250 Matter 269/300 Energy 100/100 System Corruption 1% Temperature Cool (6) Movement Walking (120) Location -10/Mines Parts ------- > --- POWER (1) -------- (None) > --- PROPULSION (2) --- Aluminum Leg > --- UTILITY (2) ------ Improved Heat Sink Seismic Analyzer > --- WEAPON (2) ------- (None) > --- INVENTORY (4) ---- Small Storage Unit Large Matter Pod (55) Peak State ------------ > --- POWER ------------ Light Nuclear Core > --- PROPULSION ------- Aluminum Leg Aluminum Leg > --- UTILITY ---------- Improved Heat Sink Seismic Analyzer > --- WEAPON ----------- Light Assault Rifle Light Assault Rifle > --- INVENTORY -------- Aluminum Leg Small Storage Unit Large Matter Pod Grenade Launcher [Rating: 11] Favorites ----------- Power Light Nuclear Core Engine Light Ion Engine Power Core Light Nuclear Core Propulsion Aluminum Leg Leg Aluminum Leg Utility Seismic Analyzer Device Improved Heat Sink Storage Small Storage Unit Processor Seismic Analyzer Weapon Light Assault Rifle Ballistic Gun Light Assault Rifle Launcher Grenade Launcher Build | -11 -10 -10 ------- Run | Scr Mat Min Slots Evolved . | . . . Power . | . . . Propulsion . | . . . Utility . | . . . Weapon . | . . . Parts Attached 16 | 7 3 6 Power 4 | 1 2 1 Engine 3 | 1 2 . Core 1 | . . 1 Reactor . | . . . Propulsion 3 | 2 . 1 Treads . | . . . Leg 3 | 2 . 1 Wheel . | . . . Hover . | . . . Flight . | . . . Utility 3 | 2 . 1 Device 1 | . . 1 Storage 1 | 1 . . Processor 1 | 1 . . Hackware . | . . . Protection . | . . . Artifact . | . . . Weapon 6 | 2 1 3 Energy Gun . | . . . Energy Cannon . | . . . Ballistic Gun 4 | 2 . 2 Ballistic Cannon . | . . . Launcher 2 | . 1 1 Special Weapon . | . . . Impact Weapon . | . . . Slashing Weapon . | . . . Piercing Weapon . | . . . Special Melee Weapon . | . . . Unidentified Prototypes . | . . . Parts Lost 9 | . 3 6 Power 3 | . 2 1 Propulsion 2 | . . 2 Utility . | . . . Weapon 4 | . 1 3 Highest Loss Streak 5 | . 2 5 Average Slot Usage (%) 85 | . 82 87 Engine 4 | . 12 . Core 9 | . . 13 Leg 27 | . 28 27 Device 3 | . . 5 Processor 14 | . 14 14 Ballistic Gun 23 | . 24 22 Launcher 2 | . 2 2 Naked Turns . | . . . Heaviest Build 10 | 10 10 9 Greatest Support 20 | 20 20 20 Greatest Overweight (x) . | . . . Average Overweight (x) . | . . . Largest Inventory Capacity 6 | 6 4 4 Average Capacity 4 | 4 4 4 Most Carried 5 | 5 4 4 Average Carried 3 | 3 3 3 Final Capacity 4 | 4 4 4 Final Carried 4 | 4 3 2 Class Distribution -------------------- 81% | Mutant 18% | Scavenger-Mutant Dominant Class ---------------- Mutant | -10/Materials Mutant | -10/Mines Resources | -11 -10 -10 ----------- Run | Scr Mat Min Matter Collected 585 | 314 41 230 Remotely . | . . . Salvage Created 499 | 157 198 144 Parts 39 | 9 15 15 Haulers Intercepted . | . . . Recyclers Shooed 3 | . 3 . Parts Field Recycled . | . . . Retrieved Matter . | . . . Parts Self-Destructed . | . . . Prevented . | . . . Kills | -11 -10 -10 ------- Run | Scr Mat Min Combat Hostiles Destroyed 12 | . 4 8 Guns 6 | . 2 4 AOE 6 | . 2 4 Classes Destroyed 6 | 2 3 1 Worker 1 | . 1 . Builder 1 | . 1 . Tunneler 4 | 3 . 1 Recycler 1 | 1 . . Swarmer 6 | . . 6 Grunt 6 | . 4 2 Best Kill Streak 4 | 2 2 4 Combat Bots Only 3 | . 2 3 Max Kills in Single Turn 2 | 1 1 2 Gunslinging . | . . . Exploded 2 | . 1 2 Melee . | . . . Uniques/NPCs Destroyed . | . . . Combat | -11 -10 -10 -------- Run | Scr Mat Min Damage Taken 886 | . 382 504 Core 254 | . 66 188 Absorbed by Shields . | . . . Core Remaining (%) 100 | 100 . . Volleys Fired 54 | 11 22 21 Largest 2 | 2 2 2 Hottest 50 | 40 50 50 Shots Fired 100 | 22 41 37 Gun 90 | 22 36 32 Cannon . | . . . Launcher 10 | . 5 5 Special . | . . . Kinetic 90 | 22 36 32 Thermal . | . . . Explosive 10 | . 5 5 Electromagnetic . | . . . Robot Hit Streak 10 | 10 7 7 Robot Miss Streak 4 | 1 4 4 Penetration Max . | . . . Secondary Targets 1 | . . 1 Max Gunslinging Chain 1 | . . 1 Shots Hit Robots 56 | 17 21 18 Core Hits 39 | 8 14 17 Critical Hits . | . . . Critical Kills . | . . . Critical Parts Destroyed . | . . . Melee Attacks . | . . . Impact . | . . . Slashing . | . . . Piercing . | . . . Sneak Attacks . | . . . Combat Hostiles . | . . . Follow-up Attacks . | . . . Damage Inflicted 1243 | 181 532 530 Guns 558 | 181 229 148 Cannons . | . . . Explosions 670 | . 299 371 Melee . | . . . Ramming 15 | . 4 11 Kinetic 558 | 181 229 148 Thermal . | . . . Explosive 670 | . 299 371 Electromagnetic . | . . . Impact . | . . . Slashing . | . . . Piercing . | . . . Highest Corruption 1 | . 1 1 Average Corruption 1 | . 1 1 Corruption Purged . | . . . Effects 2 | . 1 1 Data Loss (minor) 1 | . . 1 Targeting Errors 1 | . 1 . Overload Shots . | . . . Overflow Damage 30 | . 19 11 Projectiles . | . . . Explosions 30 | . 19 11 Melee . | . . . Knockbacks . | . . . Impact . | . . . Kinetic . | . . . Secondary . | . . . Self-Inflicted Damage 67 | . 32 35 Shots 3 | . 1 2 Rammed 3 | . 1 2 Targets Rammed 4 | . 1 3 Kicked 1 | . . 1 Crushed . | . . . Highest Temperature 17 | . 15 17 Average Temperature 7 | . 9 5 Received Heat Transfer 393 | . 192 201 Siege Activations . | . . . Robots Corrupted . | . . . Combat Hostiles . | . . . Parts Fried . | . . . Impact Corruptions . | . . . Robots Melted . | . . . Combat Hostiles . | . . . Parts Melted 1 | . . 1 Heat Transferred . | . . . Parts Sabotaged . | . . . Parts Stolen . | . . . Parts Stripped . | . . . Power Chain Reactions . | . . . Missiles Intercepted . | . . . Alert | -11 -10 -10 ------- Run | Scr Mat Min Peak Influence 187 | 20 149 187 Initial 52 | . 13 52 Average 79 | 8 57 123 Maximum Alert Level . | . . . Low Security (%) 100 | 100 100 100 Level 1 . | . . . Level 2 . | . . . Level 3 . | . . . Level 4 . | . . . Level 5 . | . . . High Security . | . . . Max Security . | . . . Squads Dispatched 1 | . 1 . Investigation 1 | . 1 . Extermination . | . . . Reinforcement . | . . . Assault . | . . . Garrison . | . . . Intercept . | . . . Construction Impeded . | . . . Haulers Reinforced . | . . . Stealth | -11 -10 -10 --------- Run | Scr Mat Min Distress Signals . | . . . Communications Jammed . | . . . Distress Signals . | . . . Times Spotted 22 | . 9 13 Peak Tracking Total 5 | . 5 4 Tactical Retreats 1 | . . 1 Traps | -11 -10 -10 ------- Run | Scr Mat Min Traps Triggered . | . . . Indirectly . | . . . Trap Hack Attempts . | . . . Triggered . | . . . Disarmed . | . . . Reprogrammed . | . . . Reused . | . . . Traps Extracted . | . . . Installed . | . . . Triggered . | . . . Machines | -11 -10 -10 ---------- Run | Scr Mat Min Machines Disabled 1 | . 1 . Max in Single Turn 1 | . 1 . Machines Sabotaged . | . . . Garrisons Compromised . | . . . Overloaded Fab Kills . | . . . Fab Network Shutdowns . | . . . Hacking | -11 -10 -10 --------- Run | Scr Mat Min Machines Accessed 1 | . 1 . Terminals 1 | . 1 . Fabricators . | . . . Repair Stations . | . . . Recycling Units . | . . . Scanalyzers . | . . . Garrison Access . | . . . Total Hacks 3 | . 3 . Successful 3 | . 3 . Failed . | . . . Catastrophic . | . . . Database Lockouts . | . . . Manual 3 | . 3 . Terminals 3 | . 3 . Fabricators . | . . . Repair Stations . | . . . Recycling Units . | . . . Scanalyzers . | . . . Garrison Access . | . . . Terminal Hacks . | . . . Fabricator Hacks . | . . . Repair Station Hacks . | . . . Recycling Unit Hacks . | . . . Scanalyzer . | . . . Garrison Access Hacks . | . . . Unauthorized Hacks 3 | . 3 . Terminals 3 | . 3 . Track 1 | . 1 . Assimilate 1 | . 1 . Botnet 1 | . 1 . Fabricators . | . . . Repair Stations . | . . . Recycling Units . | . . . Scanalyzers . | . . . Garrison Access . | . . . Data Cores Recovered . | . . . Used . | . . . Hacking Detections 1 | . 1 . Full Trace Events 1 | . 1 . Feedback Events 1 | . 1 . Corruption 1 | . 1 . Feedback Blocked . | . . . Robot Schematics Acquired . | . . . Robots Built . | . . . Matter . | . . . Time . | . . . Total Robot Build Rating . | . . . Part Schematics Acquired . | . . . Parts Built . | . . . Matter . | . . . Time . | . . . Total Part Build Rating . | . . . Parts Repaired . | . . . Time . | . . . Parts Recycled . | . . . Recycled Matter . | . . . Retrieved Matter . | . . . Retrieved Components . | . . . Parts Scanalyzed . | . . . Part Schematics Acquired . | . . . Parts Damaged . | . . . Bothacking | -11 -10 -10 ------------ Run | Scr Mat Min Used RIF Installer . | . . . Robots Hacked . | . . . Non-combat . | . . . Combat . | . . . Robot Hacks Applied . | . . . Relay Couplers Released . | . . . Robots Rewired . | . . . Allies Hacked . | . . . Hacks Repelled . | . . . Allies | -11 -10 -10 -------- Run | Scr Mat Min Total Allies . | . . . Largest Group . | . . . Highest-Rated Group . | . . . Highest-Rated Ally . | . . . Total Orders . | . . . Ally Attacks . | . . . Total Damage . | . . . Kills . | . . . Allies Corrupted . | . . . Allies Melted . | . . . Intel | -11 -10 -10 ------- Run | Scr Mat Min Robot Analysis Total . | . . . Derelict Logs Recovered 1 | . . 1 Drone Launches . | . . . Drone Recoveries . | . . . Exploration | -11 -10 -10 ------------- Run | Scr Mat Min Turns Passed 1116 | 280 249 587 Spaces Moved 789 | 203 151 435 Core 24 | 24 . . Treads . | . . . Legs 765 | 179 151 435 Wheels . | . . . Hover . | . . . Flight . | . . . Fastest Speed 50 | 50 120 120 Average Speed 117 | 111 120 120 Slowest Speed 120 | 120 120 120 Overloaded Moves . | . . . Propulsion Burnouts . | . . . Robots Hopped . | . . . Cave-ins Triggered . | . . . Exploration Rate (%) 31 | 8 30 55 Regions Visited 2 Branch Regions 1 Pre-discovered Areas . | . . . Known Exits Taken . | . . . Unknown Exits Taken 2 | 1 1 . Scrap Searched 1 | . . 1 Spaces Dug . | . . . Terrain Destroyed 64 | . 24 40 Melee . | . . . Projectile . | . . . AOE 64 | . 24 40 Terrain Rammed . | . . . Walls Destroyed . | . . . Machines Disabled . | . . . Actions | -11 -10 -10 --------- Run | Scr Mat Min Total 885 | 237 180 468 Wait 3 | 3 . . Move 787 | 202 150 435 Hop . | . . . Pick Up 16 | 12 2 2 Fast Attach 3 | . 1 2 Attach 11 | 7 1 3 Detach . | . . . Swap 2 | . 1 1 Drop 5 | 2 2 1 Fire 54 | 11 22 21 Melee . | . . . Ram . | . . . Kick 4 | . 1 3 Crush . | . . . Escape Stasis . | . . . Rewire . | . . . Trap . | . . . Miscellaneous . | . . . Route ------- -11/Scrapyard -10/Materials -10/Mines (discovered 2 exits: Mat / [*Exi]) History --------- Turn | Location | Event 8 | -11/Scrapyard | Discovered new exit (range 16) 281 | -11/Scrapyard | Entered Materials 301 | -10/Materials | Build established: Mutant 439 | -10/Materials | Discovered new exit (range 16) 530 | -10/Materials | Entered Mines 540 | -10/Mines | Met a Derelict bent on vengeance 763 | -10/Mines | Found a hidden stash of uninstalled traps 820 | -10/Mines | Deemed a non-threat by the Exiles lab entrance 821 | -10/Mines | Discovered new exit (range 5) 898 | -10/Mines | Identified exit to Materials 1095 | -10/Mines | Core integrity fell below 50% 1108 | -10/Mines | Core integrity fell below 20% 1117 | -10/Mines | Destroyed by G-34 Mercenary with Small Laser Last Messages --------------- 00898_ Acquired derelict log, extracted data. 00902_ Acquired Imp. Heat Sink. 01017_ Kicked K-01 Serf out of the way. 01035_ Aluminum Leg destroyed. 01037_ S-10 Pest destroyed. 01042_ Switching to secondary target: S-10 Pest. 01050_ S-10 Pest destroyed. 01064_ Slammed into R-06 Scavenger. 01067_ Acquired 11 matter. 01068_ Acquired 20 matter. 01070_ Acquired 15 matter. 01089_ Lgt. Assault Rifle destroyed. 01093_ Aluminum Leg destroyed. 01101_ T-07 Excavator destroyed. 01101_ Destroyed Sml. Laser. 01107_ Grenade Launcher destroyed. 01107_ Destroyed Grenade Launcher. 01113_ The unstable cave ceiling collapses. 01113_ Lgt. Nuclear Core destroyed. 01115_ Lgt. Assault Rifle destroyed. Map ----- +----------------------------------------------------+ | ##????????#######????????????????????????????? | | ############# #????????????????????????????? | | ##### #????????????????????????????? | | #????????????????????????????? | | #????????????????????????????? | | ## ##### #????????????????????????????? | | ?## ##### #????????????????????????????? | | ?## #???##########????????????????????????????? | | ## ##?????????????????????????????????????????? | | #??????????????????????????????????????????? | | & ##??????????????????????????????????????????? | | & #???????????????????????????????????????????? | | & ##???????????????????????????????????????????? | | ##????????????????????????????????????????????? | | ##?????????????????????????????????????????????? | | # #??????????????????????????????????????????????? | | #??????????????????????????????????????????????? | | # #??????????????????????????????????????????????? | | # #??#####???????????????????????????????????????? | | # #### ######## #?????????????????????????????? | | # #?????????????????????????????? | | # #???###???????????????????????? | | ##### #### ##?????# ###?????????????????????? | | ????# # ##???????????# ###???????????????????? | | ##### ####????????????# ###?????????????????? | | #???????????????# @ ##????????????????? | | ##### #???????????????## g #???????????????? | | ????# #????????????????##g #?????????????? | | ????# ###??????????????# #### #####?????? | | ????# ## ????????????## =* g ????? | | ????# ## ???????????## ! ????? | | ????# ## ?????????## ### #####?????? | | ????# #?# ?????????# ##???#?????????? | | ????# #??# #???????## # #??????????????? | | #???# #??# #?????## ###### ??????????????? | | #???# #??# ###### ##???? ##?????????????? | | #???# #???# ## ##????#??????????????? | | #???# #????# #???????????????????? | | ##??# #????# #???????????????????? | | ##?# #????# ##???????????????????? | | ### #????## ### ##????????????????????? | | ## #?????## #?## ###?????????????????????? | | #?###### #??# ###???????????????????????? | | #?# #?? ##?????????????????????????? | | ########?# ######?# #??????????????????????????? | | #????????# #??????# ##????????????